fUSD/lending_fUSD_20240701
["ID","MTS","AMOUNT","RATE_DAILY","PERIOD"]
[330800611,1719803450587,-166.12712245,0.00019735,2]
[330800612,1719803450597,-166.12712245,0.00019764,2]
[330800613,1719803450606,-759.0,0.0001982,2]
[330800614,1719803450619,-200.0,0.00019831,2]
[330800615,1719803450628,-618.0,0.00019888,2]
[330800616,1719803450637,-166.0,0.00019888,2]
[330800617,1719803450646,-401.051,0.00019888,2]
[330800618,1719803450656,-448.0,0.00019888,2]
[330800619,1719803450666,-173.17508508,0.00019899,2]
[330800620,1719803450675,-317.29092464,0.00019923,2]
[330800621,1719803450684,-153.41251731,0.00019925,2]
[330800622,1719803450694,-153.3118478,0.00019936,2]
[330800623,1719803450703,-317.29092464,0.00019949,2]
[330800624,1719803450712,-153.3118478,0.00019969,2]
[330800625,1719803450722,-327.00742717,0.00019971,2]
[330800626,1719803450731,-166.12712245,0.00019972,2]
[330800627,1719803450740,-343.09077766,0.00019989,2]
[330800628,1719803450749,-194.73255422,0.0001999,2]
[330800629,1719803450760,-175.39551155,0.0001999,2]
[330800630,1719803450769,-292.96182057,0.0002,2]
[330800631,1719803450778,-3763.35773387,0.0002,2]
[330800632,1719803450788,-6653.0,0.0002,2]
[330800633,1719803450797,-9388.07155884,0.0002,2]
[330800634,1719803450806,-6033.12797656,0.0002,2]
[330800635,1719803450815,-2000.0,0.0002,2]
[330800636,1719803450825,-542.3753552,0.0002,2]
[330800637,1719803450834,-28470.91397256,0.0002,2]
[330800638,1719803450844,-298.0232938,0.0002,2]
[330800639,1719803450853,-343.09077766,0.00020078,2]
[330800640,1719803450862,-154.83472858,0.00020092,2]
[330800641,1719803450872,-154.94398226,0.00020108,2]
[330800642,1719803450881,-156.4032567,0.00020114,2]
[330800643,1719803450890,-153.3118478,0.00020143,2]
[330800644,1719803450899,-153.41251731,0.0002016,2]
[330800645,1719803450908,-166.6666667,0.00020166,2]
[330800646,1719803450917,-166.12712245,0.00020175,2]
[330800647,1719803450926,-150.0,0.00020187,2]
[330800648,1719803450935,-159.79,0.00020192,2]
[330800649,1719803450944,-155.74222071,0.00020204,2]
[330800650,1719803450953,-10627.78982702,0.00020231,2]
[330800651,1719803450963,-152.66657847,0.00020241,2]
[330800652,1719803450971,-166.12712245,0.00020322,2]
[330800653,1719803450980,-154.86627898,0.00020331,2]
[330800654,1719803450990,-166.66666668,0.00020343,2]
[330800655,1719803450999,-166.12712245,0.00020369,2]
[330800656,1719803451010,-153.3118478,0.00020429,2]
[330800657,1719803451019,-317.29092464,0.00020435,2]
[330800658,1719803451029,-317.29092464,0.00020439,2]
[330800659,1719803451039,-153.25,0.0002049,2]
[330800660,1719803451048,-800.0,0.000205,2]
[330800661,1719803451057,-1000.0,0.000205,2]
[330800662,1719803451067,-615.970076,0.00020512,2]
[330800663,1719803451076,-166.12712245,0.00020513,2]
[330800664,1719803451085,-154.94398226,0.0002054,2]
[330800665,1719803451094,-166.12712245,0.00020545,2]
[330800666,1719803451103,-207.542088,0.00020548,2]
[330800667,1719803451112,-153.3118478,0.00020634,2]
[330800668,1719803451122,-322.04,0.0002066,2]
[330800669,1719803451131,-150.0,0.00020692,2]
[330800670,1719803451140,-1007.0,0.000207,2]
[330800671,1719803451149,-166.12712245,0.00020706,2]
[330800672,1719803451158,-154.86627898,0.00020716,2]
[330800673,1719803451168,-2553.45135113,0.00020739,2]
[330800674,1719803451177,-154.86627898,0.00020748,2]
[330800675,1719803451187,-343.09077766,0.00020783,2]
[330800676,1719803451196,-153.25,0.0002079,2]
[330800677,1719803451205,-155.38465714,0.00020799,2]
[330800678,1719803451214,-26477.94447172,0.00020799,7]
[330800679,1719803451421,-9165.41291885,0.00020799,7]
[330800680,1719803451433,-78891.1092216,0.00020799,7]
[330800681,1719803451444,-1351.78790995,0.00020799,7]
[330800683,1719803505373,253.22,0.00011201,2]
[330800685,1719803616838,4632.44073179,0.00011201,2]
[330800686,1719803875707,157.10644969,0.00011201,10]
[330800687,1719803953789,4914.9682703,0.00011199,2]
[330800689,1719804028721,155.0,0.00011199,10]
[330800690,1719804117221,155.0,0.00011199,10]
[330800691,1719804133738,369.16066831,0.00011199,2]
[330800693,1719804227229,184.59305915,0.00011199,10]
[330800695,1719804406144,-1047.52483061,0.00013128,2]
[330800696,1719804464677,1902.84188033,0.00011199,2]
[330800697,1719804511620,1494.77524589,0.00011199,2]
[330800706,1719804634196,-255.53691839,0.00012273,2]
[330800707,1719804634206,-91.23329878,0.00013472,2]
[330800708,1719804634218,-299.73537845,0.00013472,2]
[330800709,1719804634228,-163.56605059,0.00013474,2]
[330800710,1719804634238,-951.84099307,0.00013574,2]
[330800711,1719804634248,-84.85757789,0.000156,2]
[330800712,1719804634260,-2722.04110642,0.000156,2]
[330800713,1719804634272,-306.20467746,0.000156,2]
[330800714,1719804634286,-478.89663823,0.000156,2]
[330800715,1719804634297,-229.37314138,0.00016424,2]
[330800716,1719804634312,-12.15685862,0.00016424,2]
[330800717,1719804634321,-159.88,0.00017808,2]
[330800718,1719804634331,-999.99,0.00017808,2]
[330800719,1719804634340,-1525.03025763,0.00017889,2]
[330800720,1719804634353,-389.84087267,0.00017889,2]
[330800721,1719804634365,-299.6900001,0.00017889,2]
[330800722,1719804634377,-711.72882134,0.00017889,2]
[330800723,1719804634389,-472.14322502,0.00017889,2]
[330800724,1719804634400,-748.65194149,0.00017889,2]
[330800725,1719804634412,-852.91488175,0.00017889,2]
[330800726,1719804634422,-307.0,0.00017998,2]
[330800727,1719804634431,-298.45180818,0.00018,2]
[330800728,1719804634440,-2090.85704213,0.00018,3]
[330800729,1719804634450,-250.0,0.00018333,2]
[330800730,1719804634459,-1000.0,0.00018543,2]
[330800731,1719804634469,-152.9902248,0.00018565,2]
[330800732,1719804634478,-251.59990362,0.00018574,2]
[330800733,1719804634487,-251.59990362,0.00018587,2]
[330800734,1719804634497,-2683.9956346,0.00018648,2]
[330800735,1719804634506,-151.52380886,0.0001866,2]
[330800736,1719804634516,-251.59990362,0.00018679,2]
[330800737,1719804634525,-241.53,0.00018688,2]
[330800738,1719804634541,-1759.20948392,0.00018717,2]
[330800739,1719804634550,-153.3118478,0.00018736,2]
[330800740,1719804634559,-152.28709696,0.00018757,2]
[330800741,1719804634568,-1142.75977768,0.00018794,2]
[330800742,1719804634577,-171.397,0.00018794,2]
[330800743,1719804634586,-154.94398226,0.00018809,2]
[330800744,1719804634595,-1578.99,0.00018849,30]
[330800745,1719804634604,-526.28304125,0.00018864,2]
[330800746,1719804634613,-151.02465677,0.00018867,2]
[330800747,1719804634624,-151.02465677,0.00018885,2]
[330800748,1719804634633,-154.86627899,0.000189,2]
[330800749,1719804634643,-1046.97651198,0.0001892,2]
[330800750,1719804634655,-1053.02348802,0.0001892,2]
[330800751,1719804634664,-152.28709696,0.00018959,2]
[330800752,1719804634675,-227.0716558,0.00018999,2]
[330800753,1719804634685,-300.0,0.00019,2]
[330800754,1719804634694,-153.41251731,0.00019067,2]
[330800755,1719804634704,-716.40696563,0.00019098,2]
[330800756,1719804634714,-154.86627899,0.00019108,2]
[330800757,1719804634723,-153.41251731,0.0001914,2]
[330800758,1719804634734,-1188.83515878,0.00019178,2]
[330800759,1719804634744,-154.94398226,0.00019178,2]
[330800760,1719804634753,-150.0,0.00019178,2]
[330800761,1719804634763,-71.26062743,0.00019178,2]
[330800762,1719804634775,-178.73937257,0.00019178,2]
[330800763,1719804634787,-355.28705986,0.00019212,2]
[330800764,1719804634799,-1994.71294014,0.00019212,2]
[330800765,1719804634808,-153.41251731,0.00019228,2]
[330800766,1719804634818,-152.16319906,0.00019282,2]
[330800767,1719804634828,-232.6800114,0.00019359,2]
[330800768,1719804634838,-151.02465677,0.00019365,2]
[330800769,1719804634847,-232.6800114,0.00019381,2]
[330800770,1719804634856,-338.41703392,0.00019389,2]
[330800771,1719804634869,-193.99727334,0.00019389,2]
[330800772,1719804634879,-104.96772533,0.00019406,2]
[330800773,1719804634890,-48.02249948,0.00019406,2]
[330800774,1719804634900,-251.59990362,0.00019407,2]
[330800775,1719804634910,-251.59990362,0.00019438,2]
[330800776,1719804634920,-232.6800114,0.00019452,2]
[330800777,1719804634930,-1362.47768188,0.000195,2]
[330800778,1719804634942,-1137.52231812,0.000195,2]
[330800779,1719804634952,-232.6800114,0.00019539,2]
[330800780,1719804634962,-251.59990362,0.00019561,2]
[330800781,1719804634972,-151.02465677,0.00019579,2]
[330800782,1719804634982,-150.45691154,0.0001958,2]
[330800783,1719804634991,-155.74222071,0.00019611,2]
[330800784,1719804635001,-153.3118478,0.00019633,2]
[330800785,1719804635015,-153.3118478,0.00019656,2]
[330800786,1719804635025,-251.59990362,0.00019667,2]
[330800787,1719804635036,-154.94398226,0.0001967,2]
[330800788,1719804635047,-150.0,0.00019683,2]
[330800789,1719804635057,-150.45691154,0.00019733,2]
[330800790,1719804635066,-152.28709696,0.00019746,2]
[330800791,1719804635076,-154.94398226,0.00019768,2]
[330800792,1719804635087,-151.02465677,0.0001977,2]
[330800793,1719804635097,-171.397,0.00019781,2]
[330800794,1719804635106,-156.40325672,0.00019804,2]
[330800795,1719804635115,-151.52380886,0.00019818,2]
[330800796,1719804635126,-232.6800114,0.00019834,2]
[330800797,1719804635136,-154.86627899,0.00019891,2]
[330800798,1719804635146,-1088.84893981,0.000199,2]
[330800799,1719804635158,-3590.31346019,0.000199,2]
[330800800,1719804635168,-163.56605059,0.000199,2]
[330800801,1719804635177,-532.03787875,0.000199,2]
[330800802,1719804635187,-226.80456877,0.000199,2]
[330800803,1719804635196,-527.09970347,0.000199,2]
[330800804,1719804635206,-156.98542982,0.000199,2]
[330800805,1719804635215,-163.5037136,0.000199,2]
[330800806,1719804635225,-154.86627899,0.00019947,2]
[330800807,1719804635234,-154.94398226,0.00019972,2]
[330800808,1719804635244,-152.66657847,0.00019989,2]
[330800809,1719804635253,-153.25,0.0001999,2]
[330800810,1719804635264,-79.86488229,0.0001999,3]
[330800811,1719804635276,-624.06511771,0.0001999,3]
[330800812,1719804635287,-153.25,0.0001999,2]
[330800813,1719804635297,-153.25,0.0001999,2]
[330800814,1719804635307,-170.89213395,0.00019999,2]
[330800815,1719804635317,-500.0,0.00019999,2]
[330800816,1719804635328,-500.0,0.00019999,2]
[330800817,1719804635338,-322.10091911,0.00019999,2]
[330800818,1719804635348,-500.0,0.00019999,2]
[330800819,1719804635358,-423.48800702,0.00019999,2]
[330800820,1719804635368,-500.0,0.00019999,2]
[330800821,1719804635379,-642.70846661,0.00019999,2]
[330800822,1719804635388,-500.0,0.00019999,2]
[330800823,1719804635398,-244.27886498,0.00019999,2]
[330800824,1719804635408,-413.53028866,0.00019999,2]
[330800825,1719804635419,-500.0,0.00019999,2]
[330800826,1719804635429,-500.0,0.00019999,2]
[330800827,1719804635439,-500.0,0.00019999,2]
[330800828,1719804635448,-259.26140862,0.00019999,2]
[330800829,1719804635457,-606.28694828,0.00019999,2]
[330800830,1719804635467,-298.83275246,0.00019999,2]
[330800831,1719804635476,-500.0,0.00019999,2]
[330800832,1719804635485,-500.0,0.00019999,2]
[330800833,1719804635495,-463.54653375,0.00019999,2]
[330800834,1719804635504,-500.0,0.00019999,2]
[330800835,1719804635513,-500.0,0.00019999,2]
[330800836,1719804635523,-500.0,0.00019999,2]
[330800837,1719804635533,-500.0,0.00019999,2]
[330800838,1719804635542,-500.0,0.00019999,2]
[330800839,1719804635552,-500.0,0.00019999,2]
[330800840,1719804635561,-500.0,0.00019999,2]
[330800841,1719804635571,-231.81188341,0.00019999,2]
[330800842,1719804635581,-500.0,0.00019999,2]
[330800843,1719804635590,-500.0,0.00019999,2]
[330800844,1719804635600,-500.0,0.00019999,2]
[330800845,1719804635609,-500.0,0.00019999,2]
[330800846,1719804635618,-500.0,0.00019999,2]
[330800847,1719804635628,-500.0,0.00019999,2]
[330800848,1719804635637,-500.0,0.00019999,2]
[330800849,1719804635648,-162.98086344,0.00019999,2]
[330800850,1719804635660,-337.01913656,0.00019999,2]
[330800851,1719804635671,-3078.55932045,0.0002,7]
[330800852,1719804638328,-166.0,0.00017568,2]
[330800853,1719804638339,-12717.92620114,0.0002,7]
[330800859,1719804638753,-6460.08529946,0.0002,7]
[330800862,1719804638766,-323.8635894,0.0002,7]
[330800863,1719804638778,-3201.30434643,0.0002,7]
[330800864,1719804638791,-4915.4529954,0.0002,7]
[330800865,1719804638802,-3209.94494954,0.0002,7]
[330800866,1719804638814,-726.22550044,0.0002,7]
[330800867,1719804638826,-683.91734966,0.0002,7]
[330800868,1719804638838,-3912.81499996,0.0002,7]
[330800869,1719804638850,-1393.72159946,0.0002,7]
[330800870,1719804638861,-418.0,0.0002,7]
[330800907,1719804644776,-292.35005528,0.00013574,2]
[330800908,1719804644790,-659.49093779,0.00013574,2]
[330800909,1719804644799,-1759.20948392,0.00018717,2]
[330800910,1719804644809,-18592.06608,0.0002,7]
[330800911,1719804644820,-316.71946803,0.0002,7]
[330800912,1719804644832,-3189.45342976,0.0002,7]
[330800913,1719804644866,-935.21484251,0.0002,7]
[330800914,1719804644877,-1401.6000012,0.0002,7]
[330800920,1719804646646,-4566.43182891,0.0002,7]
[330800921,1719804646658,-16873.81040717,0.0002,7]
[330800922,1719804646669,-36570.409575,0.0002,7]
[330800924,1719804646682,-53834.24078669,0.0002,7]
[330800926,1719804646693,-8477.06869868,0.0002,7]
[330800928,1719804646705,-1203.01488331,0.0002,7]
[330800930,1719804646718,-274.20030009,0.0002,7]
[330800931,1719804646729,-2004.07645436,0.0002,7]
[330800932,1719804646739,-386.34527195,0.0002,7]
[330800933,1719804646751,-7146.8997323,0.0002,7]
[330800934,1719804646762,-2293.52835284,0.0002,7]
[330800935,1719804646774,-892.54323916,0.0002,7]
[330800936,1719804646787,-35444.44293231,0.0002,7]
[330800937,1719804646797,-115520.62180137,0.0002,7]
[330800938,1719804646809,-369.39674174,0.0002,7]
[330800939,1719804646821,-912.85999773,0.0002,7]
[330800940,1719804646832,-858.99079704,0.0002,7]
[330800941,1719804646843,-265.84776388,0.0002,7]
[330800942,1719804646856,-1357.51086529,0.0002,7]
[330800943,1719804646868,-1844.02373852,0.0002,7]
[330800944,1719804646879,-1449.50463452,0.0002,7]
[330800945,1719804647151,-1004.84499967,0.0002,7]
[330800946,1719804647166,-430.0,0.0002,7]
[330800947,1719804647177,-2110.62207728,0.0002,7]
[330800948,1719804647189,-507.49219345,0.0002,7]
[330800949,1719804682366,506.0,0.00011201,2]
[330800955,1719805021981,446.03172602,0.00011201,2]
[330800956,1719805043889,4625.16741665,0.00011201,2]
[330800957,1719805044003,259.55461446,0.00011201,2]
[330800959,1719805091568,150.0,0.00011201,2]
[330800960,1719805091590,150.0,0.00011201,2]
[330800961,1719805091613,252.6847755,0.00011201,2]
[330800962,1719805128977,150.0,0.00011201,2]
[330800963,1719805129001,150.0,0.00011201,2]
[330800964,1719805137394,4625.16741665,0.00011201,2]
[330800967,1719805246417,150.0,0.00011201,2]
[330800968,1719805246438,150.0,0.00011201,2]
[330800969,1719805246460,4325.16741665,0.00011201,2]
[330800970,1719805273977,150.0,0.00011201,2]
[330800971,1719805274003,150.0,0.00011201,2]
[330800972,1719805344409,4625.16741665,0.00011201,2]
[330800974,1719805375981,159.03935982,0.00011201,2]
[330800975,1719805460419,4625.16741665,0.00011201,2]
[330800976,1719805562674,150.0,0.00011199,2]
[330800977,1719805562696,150.0,0.00011199,2]
[330800978,1719805562720,150.0,0.00011199,2]
[330800979,1719805562741,150.0,0.00011199,2]
[330800980,1719805562763,118.92371031,0.00011199,2]
[330800981,1719805566421,4625.16741665,0.00011201,2]
[330800982,1719805597119,-156.04144622,0.00013577,2]
[330800983,1719805597138,-230.0229,0.0001378,2]
[330800984,1719805597158,-1444.26842067,0.0001378,2]
[330800987,1719805660432,150.0,0.00011201,2]
[330800988,1719805660454,150.0,0.00011201,2]
[330800989,1719805660480,150.0,0.00011201,2]
[330800990,1719805660502,150.0,0.00011201,2]
[330800991,1719805660523,150.0,0.00011201,2]
[330800992,1719805660545,172.86532125,0.00011201,2]
[330800993,1719805660568,3702.3020954,0.00011201,2]
[330800994,1719805770434,4625.16741665,0.00011201,2]
[330800995,1719805786440,4625.16741665,0.00011201,2]
[330801017,1719805832055,-206.06290956,0.00013128,2]
[330801018,1719805832065,-868.25709044,0.00013372,2]
[330801019,1719805832083,-96.0954299,0.00013372,2]
[330801020,1719805832093,-360.67077805,0.00013394,2]
[330801021,1719805832106,-603.68174229,0.00013394,2]
[330801022,1719805832115,-161.25976206,0.00013416,2]
[330801023,1719805832124,-191.75225384,0.00013516,2]
[330801024,1719805832135,-31.07270336,0.00013516,2]
[330801025,1719805832145,-4835.54084466,0.00013516,2]
[330801026,1719805832160,-935.25814264,0.00013516,2]
[330801027,1719805832171,-5692.61884254,0.00013516,2]
[330801028,1719805832187,-8492.98647073,0.00013516,2]
[330801029,1719805832231,-397.56791311,0.00013516,2]
[330801030,1719805832244,-1005.35596429,0.00013516,2]
[330801031,1719805832257,-750.0,0.00013577,2]
[330801032,1719805832267,-4684.11207933,0.0001378,2]
[330801033,1719805832276,-2500.0,0.0001378,2]
[330801034,1719805832286,-2015.6022,0.0001378,2]
[330801035,1719805832297,-392.43110977,0.00013799,2]
[330801036,1719805832308,-302.11780374,0.00013799,2]
[330801037,1719805832319,-937.54819204,0.00013799,2]
[330801038,1719805832328,-60.32424136,0.00013799,2]
[330801039,1719805832339,-642.3977412,0.00013799,2]
[330801040,1719805832351,-448.29631206,0.00013799,2]
[330801042,1719805832360,-175.12050828,0.00013799,2]
[330801044,1719805832370,-250.0,0.00013876,2]
[330801046,1719805832384,-756.00891026,0.0001388,2]
[330801093,1719805840916,-964.35252034,0.00013416,2]
[330801094,1719805840926,-2716.32542864,0.0001388,2]
[330801095,1719805840939,-659.75132017,0.0001388,2]
[330801096,1719805840950,-258.02513641,0.0001388,2]
[330801097,1719805840970,-1003.58115011,0.0001388,2]
[330801098,1719805841196,-4625.16741665,0.00013577,2]
[330801099,1719805841206,-27926.18971466,0.0001388,2]
[330801100,1719805843205,-248909.168213,0.0001388,2]
[330801101,1719805843263,-30019.70152107,0.0001388,2]
[330801102,1719805843273,-9577.5093,0.00013899,2]
[330801103,1719805843282,-327.24291454,0.00013899,2]
[330801104,1719805843291,-205.2034579,0.000139,2]
[330801105,1719805843300,-120173.13461294,0.00013999,2]
[330801106,1719805843311,-940.03121284,0.00013999,2]
[330801107,1719805843323,-25038.89914631,0.00013999,2]
[330801108,1719805843376,-9367.57070698,0.00013999,2]
[330801109,1719805843432,-327.86874383,0.00013999,2]
[330801110,1719805843489,-316.156902,0.00013999,2]
[330801111,1719805843500,-707.66467926,0.00013999,2]
[330801112,1719805843511,-1122.71897986,0.00013999,2]
[330801138,1719805846101,-1650.24238056,0.00013999,2]
[330801139,1719805846212,-6657.95335533,0.00013999,2]
[330801140,1719805846224,-63866.87796264,0.00013999,2]
[330801141,1719805846236,-835.19474965,0.00013999,2]
[330801142,1719805846270,-3997.27461241,0.00013999,2]
[330801143,1719805846330,-458.48685973,0.00013999,2]
[330801188,1719805849805,-451.23409272,0.00013999,2]
[330801193,1719806280758,155.56304663,0.00011199,2]
[330801194,1719806361490,4625.16741665,0.00011199,2]
[330801195,1719806446976,4625.16741665,0.00011199,2]
[330801196,1719806554496,1009.35770182,0.00011199,2]
[330801197,1719806571646,250.24,0.00011037,2]
[330801198,1719806656550,-221.89,0.00012935,2]
[330801199,1719806656573,-250.0,0.00012941,2]
[330801200,1719806656595,-250.24,0.000133,2]
[330801201,1719806656620,-497.29,0.00013554,2]
[330801202,1719806656645,-20189.39,0.00013554,2]
[330801203,1719806656667,-255.73,0.00013623,2]
[330801204,1719806656689,-255.73,0.00013661,2]
[330801205,1719806656712,-255.73,0.00013698,2]
[330801206,1719806656733,-2751.0,0.00013699,2]
[330801207,1719806656756,-175.65,0.00013699,2]
[330801208,1719806656777,-255.73,0.00013735,2]
[330801209,1719806656799,-255.73,0.00013773,2]
[330801210,1719806656821,-255.73,0.0001381,2]
[330801211,1719806656842,-999.99,0.0001381,2]
[330801212,1719806656862,-181.28,0.00013811,2]
[330801213,1719806656883,-255.73,0.00013848,2]
[330801214,1719806656905,-544.90188,0.0001386,2]
[330801215,1719806656925,-200.0,0.00013863,2]
[330801216,1719806656948,-255.73,0.00013885,2]
[330801217,1719806656968,-1553.9362,0.00013899,2]
[330801218,1719806657180,-64188.4478,0.00013899,2]
[330801219,1719806657203,-500.0,0.00013899,2]
[330801220,1719806657224,-9069.8609,0.00013899,2]
[330801221,1719806657246,-448.388,0.00013899,2]
[330801222,1719806657267,-19908.2086,0.00013899,2]
[330801223,1719806657289,-41577.118,0.00013899,2]
[330801224,1719806657310,-1000.0,0.00013899,2]
[330801225,1719806657331,-1000.0,0.00013899,2]
[330801226,1719806657352,-2132.6404135,0.00013899,2]
[330801227,1719806657373,-164.16276632,0.00013899,2]
[330801228,1719806657397,-175.12050824,0.000139,2]
[330801229,1719806657419,-331.41907944,0.000139,2]
[330801230,1719806657440,-164.1627663,0.00013914,2]
[330801231,1719806657462,-255.73,0.00013922,2]
[330801232,1719806657483,-164.1627663,0.00013929,2]
[330801233,1719806657505,-851.15045039,0.00013935,2]
[330801234,1719806657529,-164.1627663,0.00013943,2]
[330801235,1719806657551,-163.7,0.00013956,2]
[330801236,1719806657573,-172.27303488,0.00013958,2]
[330801237,1719806657594,-499.99,0.00013958,2]
[330801238,1719806657617,-164.1627663,0.00013958,2]
[330801239,1719806657646,-209.98252522,0.00013958,2]
[330801240,1719806657671,-3605.31126479,0.00013958,2]
[330801241,1719806657693,-255.73,0.0001396,2]
[330801242,1719806657715,-202.51752468,0.0001399,2]
[330801243,1719806657737,-255.73,0.00013997,2]
[330801244,1719806657759,-312136.64016909,0.00013999,2]
[330801245,1719806657786,-2560705.92687152,0.00014,2]
[330801246,1719806659228,76853.9701,0.00013899,2]
[330801247,1719806704336,2000.0,0.00014,2]
[330801248,1719806707870,200.0,0.00014,2]
[330801249,1719806714553,667.03877523,0.00013999,2]
[330801250,1719806765208,3021.92268944,0.00013999,2]
[330801251,1719806865863,1269.05921776,0.00013999,2]
[330801252,1719806877781,519005.37281317,0.00013999,2]
[330801253,1719806883434,544.30071955,0.00013999,2]
[330801256,1719807032597,-255.73,0.00014034,2]
[330801257,1719807032606,-255.73,0.00014072,2]
[330801258,1719807032615,-255.73,0.00014109,2]
[330801259,1719807032624,-255.73,0.00014147,2]
[330801260,1719807032634,-255.73,0.00014184,2]
[330801261,1719807032643,-255.73,0.00014221,2]
[330801262,1719807032652,-255.73,0.00014259,2]
[330801263,1719807032662,-255.73,0.00014296,2]
[330801264,1719807032671,-255.73,0.00014333,2]
[330801265,1719807032680,-3039.60986261,0.00014725,2]
[330801266,1719807032692,-565.70140217,0.00014725,2]
[330801267,1719807032702,-1035.91646523,0.000149,2]
[330801268,1719807032710,-1919.37637215,0.000149,2]
[330801269,1719807032719,-1197.953,0.000149,2]
[330801270,1719807032728,-170.3758,0.000149,2]
[330801271,1719807032742,-543.0,0.00015,2]
[330801272,1719807032756,-34013.07318435,0.00015,2]
[330801273,1719807032767,-65585.30000004,0.00015,2]
[330801274,1719807032835,-36325.31162038,0.00015,2]
[330801275,1719807032847,-1683.95353082,0.00015,2]
[330801276,1719807032856,-4391.04646918,0.00015,2]
[330801277,1719807032867,-608.95353082,0.00015,2]
[330801278,1719807032878,-91.04646918,0.0001504,2]
[330801279,1719807032897,-453.85542082,0.0001504,2]
[330801280,1719807032906,-746.14457918,0.00015116,2]
[330801281,1719807032917,-253.85542082,0.00015116,2]
[330801282,1719807032927,-1017.81660271,0.00015287,2]
[330801283,1719807032936,-8841.57872265,0.000153,3]
[330801318,1719807038203,-280.407,0.000149,2]
[330801319,1719807038213,-150.974434,0.000153,3]
[330801320,1719807038412,-1886.88,0.000153,3]
[330801321,1719807038434,-530.89946665,0.000153,3]
[330801322,1719807038450,-71.6673767,0.000153,3]
[330801323,1719807038459,-347.9736861,0.00015493,2]
[330801324,1719807038470,-2199.44251202,0.00015493,2]
[330801325,1719807038498,-418.31133617,0.00015493,2]
[330801341,1719807040296,-639.58373049,0.00015493,2]
[330801342,1719807040306,-250.24,0.00015564,2]
[330801343,1719807040316,-518.43852007,0.000156,5]
[330801344,1719807040411,-1207.67287326,0.000156,5]
[330801345,1719807040422,-701.12858154,0.000156,5]
[330801346,1719807040524,-667.34675804,0.000156,5]
[330801347,1719807040694,-8387.41326709,0.000156,5]
[330801348,1719807040704,-802.0,0.000156,2]
[330801349,1719807040713,-1035.91646514,0.00015733,2]
[330801350,1719807040723,-1919.37637206,0.00015733,2]
[330801351,1719807040733,-155.69679013,0.00016172,2]
[330801352,1719807040747,-3605.31126478,0.0001626,2]
[330801353,1719807040757,-544.90189,0.0001629,2]
[330801354,1719807040766,-654.57631861,0.00016315,2]
[330801355,1719807040776,-528.00659347,0.00016315,2]
[330801356,1719807040786,-1759.20948392,0.00016566,2]
[330801357,1719807040796,-1035.91646514,0.00016567,2]
[330801358,1719807040805,-1919.37637206,0.00016567,2]
[330801359,1719807040815,-181.44214243,0.00016699,2]
[330801360,1719807040827,-1398.36172563,0.00016808,2]
[330801361,1719807040837,-624.33886249,0.00016808,2]
[330801362,1719807040847,-823.82985451,0.00016847,2]
[330801363,1719807040858,-1000.0,0.00017005,2]
[330801364,1719807040867,-3605.31126478,0.00017028,2]
[330801365,1719807040877,-219.64646008,0.00017159,2]
[330801366,1719807040886,-320.99179022,0.00017159,2]
[330801367,1719807040897,-164.1030384,0.00017199,2]
[330801368,1719807040906,-380.42993737,0.00017199,2]
[330801369,1719807040917,-270.61648938,0.00017199,2]
[330801370,1719807040927,-203.11565096,0.00017199,2]
[330801371,1719807040936,-557.0,0.00017232,2]
[330801372,1719807040945,-237.15123277,0.00017253,2]
[330801373,1719807040955,-243.27001423,0.00017257,2]
[330801374,1719807040964,-463.68738536,0.00017257,2]
[330801375,1719807040973,-265.91083744,0.00017257,2]
[330801376,1719807040982,-1035.91646514,0.000174,2]
[330801377,1719807040991,-1919.37637206,0.000174,2]
[330801378,1719807041001,-155.26958061,0.00017444,2]
[330801379,1719807041010,-544.90188,0.0001754,2]
[330801380,1719807041019,-526.28304125,0.00017703,2]